fUST/lending_fUST_20250130
["ID","MTS","AMOUNT","RATE_DAILY","PERIOD"]
[350894012,1738179042218,-150.0,0.000166,2]
[350894013,1738179042227,-310.0460963,0.000166,2]
[350894014,1738179042236,-354.285986,0.000166,2]
[350894015,1738179042246,-354.285986,0.000166,2]
[350894016,1738179042255,-217.0494119,0.000166,2]
[350894017,1738179042264,-151.0,0.00016643,2]
[350894018,1738179042274,-4791.80501879,0.00016643,2]
[350894019,1738179042286,-1945.59,0.000167,2]
[350894020,1738179042295,-151.0,0.00016704,2]
[350894021,1738179042305,-1200.0,0.00016704,2]
[350894022,1738179042314,-666.87,0.00016704,2]
[350894023,1738179042323,-500.0,0.00016712,2]
[350894024,1738179042333,-613.1,0.00016712,2]
[350894025,1738179042342,-500.0,0.00016712,2]
[350894026,1738179042351,-500.0,0.00016712,2]
[350894027,1738179042360,-930.31,0.00016712,2]
[350894028,1738179042370,-500.0,0.00016712,2]
[350894029,1738179042379,-438.44249704,0.00016712,2]
[350894030,1738179042388,-500.0,0.00016712,2]
[350894031,1738179042397,-500.0,0.00016712,2]
[350894032,1738179042407,-500.0,0.00016712,2]
[350894033,1738179042416,-500.0,0.00016712,2]
[350894034,1738179042426,-500.0,0.00016712,2]
[350894035,1738179042436,-500.0,0.00016712,2]
[350894036,1738179042445,-1242.16,0.00016712,2]
[350894037,1738179042454,-500.0,0.00016712,2]
[350894038,1738179042463,-500.0,0.00016712,2]
[350894039,1738179042473,-707.53,0.00016712,2]
[350894040,1738179042482,-500.0,0.00016712,2]
[350894041,1738179042492,-500.0,0.00016712,2]
[350894042,1738179042501,-500.0,0.00016712,2]
[350894043,1738179042510,-500.0,0.00016712,2]
[350894044,1738179042520,-500.0,0.00016712,2]
[350894046,1738179042530,-500.0,0.00016712,2]
[350894048,1738179042543,-500.0,0.00016712,2]
[350894050,1738179042553,-500.0,0.00016712,2]
[350894051,1738179042563,-500.0,0.00016712,2]
[350894053,1738179042572,-500.0,0.00016712,2]
[350894055,1738179042581,-500.0,0.00016712,2]
[350894058,1738179042591,-500.0,0.00016712,2]
[350894060,1738179042603,-634.84,0.00016712,2]
[350894061,1738179042615,-500.0,0.00016712,2]
[350894063,1738179042626,-289.8219475,0.00016712,2]
[350894065,1738179042636,-500.0,0.00016712,2]
[350894067,1738179042646,-500.0,0.00016712,2]
[350894069,1738179042656,-500.0,0.00016712,2]
[350894071,1738179042666,-500.0,0.00016712,2]
[350894073,1738179042676,-500.0,0.00016712,2]
[350894074,1738179042686,-500.0,0.00016712,2]
[350894076,1738179042696,-1748.95,0.00016712,2]
[350894079,1738179042706,-500.0,0.00016712,2]
[350894081,1738179042716,-150.0,0.00016712,2]
[350894082,1738179042726,-500.0,0.00016712,2]
[350894084,1738179042735,-500.0,0.00016712,2]
[350894086,1738179042746,-500.0,0.00016712,2]
[350894087,1738179042759,-500.0,0.00016712,2]
[350894088,1738179042769,-518.8,0.00016712,2]
[350894089,1738179042778,-500.0,0.00016712,2]
[350894090,1738179042793,-500.0,0.00016712,2]
[350894091,1738179042803,-500.0,0.00016712,2]
[350894092,1738179042812,-500.0,0.00016712,2]
[350894093,1738179042822,-8680.58,0.00016712,2]
[350894094,1738179042832,-2365.21,0.00016712,2]
[350894095,1738179042841,-500.0,0.00016712,2]
[350894096,1738179042851,-500.0,0.00016712,2]
[350894097,1738179042860,-2397.21,0.00016712,2]
[350894098,1738179042870,-151.0,0.00016712,2]
[350894099,1738179042879,-151.0,0.00016712,2]
[350894100,1738179042888,-1112.05,0.00016712,2]
[350894101,1738179042898,-768.35,0.00016712,2]
[350894102,1738179042907,-1933.73,0.00016712,2]
[350894103,1738179042917,-838.62,0.00016712,2]
[350894104,1738179042927,-500.0,0.00016712,2]
[350894105,1738179042936,-500.0,0.00016712,2]
[350894106,1738179042947,-557.2958057,0.00016712,2]
[350894107,1738179042956,-500.0,0.00016712,2]
[350894108,1738179042967,-1848.04,0.00016712,2]
[350894109,1738179042979,-500.0,0.00016712,2]
[350894110,1738179042989,-633.79,0.00016712,2]
[350894111,1738179042998,-731.97,0.00016712,2]
[350894112,1738179043007,-500.0,0.00016712,2]
[350894113,1738179043016,-598.23,0.00016712,2]
[350894114,1738179043026,-500.0,0.00016712,2]
[350894115,1738179043039,-1961.55,0.00016712,2]
[350894116,1738179043048,-3040.19,0.00016712,2]
[350894117,1738179043057,-28265.39,0.00016712,2]
[350894118,1738179043067,-599.39,0.00016712,2]
[350894119,1738179043076,-500.0,0.00016712,2]
[350894120,1738179043085,-1497.58,0.00016712,2]
[350894121,1738179043095,-500.0,0.00016712,2]
[350894122,1738179043105,-500.0,0.00016712,2]
[350894123,1738179043115,-500.0,0.00016712,2]
[350894124,1738179043125,-756.67,0.00016712,2]
[350894125,1738179043136,-947.03,0.00016712,2]
[350894126,1738179043145,-500.0,0.00016712,2]
[350894127,1738179043155,-500.0,0.00016712,2]
[350894128,1738179043165,-2302.52,0.00016712,2]
[350894129,1738179043175,-2308.91,0.00016712,2]
[350894130,1738179043184,-500.0,0.00016712,2]
[350894131,1738179043194,-1224.94,0.00016712,2]
[350894132,1738179043203,-500.0,0.00016712,2]
[350894133,1738179043213,-500.0,0.00016712,2]
[350894134,1738179043223,-500.0,0.00016712,2]
[350894135,1738179043233,-943.61,0.00016712,2]
[350894136,1738179043243,-150.0,0.00016712,2]
[350894137,1738179043252,-1266.82,0.00016712,2]
[350894138,1738179043263,-150.0,0.00016712,2]
[350894139,1738179043273,-1120.04,0.00016712,2]
[350894140,1738179043286,-1080.51,0.00016712,2]
[350894141,1738179043295,-500.0,0.00016712,2]
[350894142,1738179043305,-663.19,0.00016712,2]
[350894143,1738179043315,-606.59,0.00016712,2]
[350894144,1738179043324,-500.0,0.00016712,2]
[350894145,1738179043333,-1161.9,0.00016712,2]
[350894146,1738179043343,-500.0,0.00016712,2]
[350894147,1738179043352,-500.0,0.00016712,2]
[350894148,1738179043361,-9505.41,0.00016712,2]
[350894149,1738179043371,-500.0,0.00016712,2]
[350894150,1738179043381,-12470.1,0.00016712,2]
[350894151,1738179043390,-4338.64,0.00016712,2]
[350894152,1738179043400,-3039.33,0.00016712,2]
[350894153,1738179043411,-500.0,0.00016712,2]
[350894154,1738179043421,-500.0,0.00016712,2]
[350894155,1738179043431,-5459.19,0.00016712,2]
[350894156,1738179043441,-500.0,0.00016712,2]
[350894157,1738179043450,-927.08,0.00016712,2]
[350894158,1738179043459,-500.0,0.00016712,2]
[350894159,1738179043469,-500.0,0.00016712,2]
[350894160,1738179043478,-500.0,0.00016712,2]
[350894161,1738179043488,-500.0,0.00016712,2]
[350894162,1738179043499,-25508.21188465,0.00016846,5]
[350894163,1738179043508,-134025.93432751,0.00016846,5]
[350894169,1738179043724,-1102.15333206,0.00016846,5]
[350894171,1738179043733,-193.255152,0.00016849,5]
[350894173,1738179043743,-192.814694,0.00016849,5]
[350894175,1738179043752,-500.0,0.00016849,2]
[350894177,1738179043762,-613.1,0.00016849,2]
[350894179,1738179043771,-500.0,0.00016849,2]
[350894181,1738179043780,-433.9579993,0.00016849,2]
[350894182,1738179043795,-930.31,0.00016849,2]
[350894184,1738179043804,-500.0,0.00016849,2]
[350894186,1738179043814,-500.0,0.00016849,2]
[350894189,1738179043825,-500.0,0.00016849,2]
[350894191,1738179043834,-500.0,0.00016849,2]
[350894193,1738179043844,-500.0,0.00016849,2]
[350894194,1738179043854,-500.0,0.00016849,2]
[350894196,1738179043863,-1242.16,0.00016849,2]
[350894199,1738179043874,-359.47300984,0.00016849,2]
[350894201,1738179043890,-140.52699016,0.00016849,2]
[350894203,1738179043900,-186.64959503,0.00016849,2]
[350894205,1738179043910,-707.53,0.00016849,2]
[350894207,1738179043919,-274.12175733,0.00016849,2]
[350894209,1738179043931,-31.57555465,0.00016849,2]
[350894211,1738179043940,-500.0,0.00016849,2]
[350894213,1738179043949,-500.0,0.00016849,2]
[350894215,1738179043959,-427.31545015,0.00016849,2]
[350894241,1738179046078,-537.0,0.00016547,2]
[350894242,1738179046087,-72.68454985,0.00016849,2]
[350894243,1738179046096,-500.0,0.00016849,2]
[350894244,1738179046106,-500.0,0.00016849,2]
[350894245,1738179046115,-500.0,0.00016849,2]
[350894246,1738179046124,-455.24642208,0.00016849,2]
[350894247,1738179046135,-500.0,0.00016849,2]
[350894248,1738179046144,-500.0,0.00016849,2]
[350894249,1738179046154,-500.0,0.00016849,2]
[350894250,1738179046163,-499.9,0.00016849,2]
[350894251,1738179046172,-634.84,0.00016849,2]
[350894252,1738179046182,-500.0,0.00016849,2]
[350894253,1738179046191,-500.0,0.00016849,2]
[350894254,1738179046200,-500.0,0.00016849,2]
[350894255,1738179046209,-500.0,0.00016849,2]
[350894256,1738179046218,-500.0,0.00016849,2]
[350894257,1738179046227,-500.0,0.00016849,2]
[350894258,1738179046236,-500.0,0.00016849,2]
[350894259,1738179046245,-1748.95,0.00016849,2]
[350894260,1738179046253,-500.0,0.00016849,2]
[350894261,1738179046263,-500.0,0.00016849,2]
[350894262,1738179046272,-500.0,0.00016849,2]
[350894263,1738179046281,-500.0,0.00016849,2]
[350894264,1738179046295,-500.0,0.00016849,2]
[350894265,1738179046304,-518.8,0.00016849,2]
[350894266,1738179046313,-500.0,0.00016849,2]
[350894267,1738179046321,-500.0,0.00016849,2]
[350894268,1738179046330,-500.0,0.00016849,2]
[350894269,1738179046339,-8680.58,0.00016849,2]
[350894270,1738179046349,-2365.21,0.00016849,2]
[350894271,1738179046358,-502.66136931,0.00016849,2]
[350894272,1738179046366,-500.0,0.00016849,2]
[350894273,1738179046376,-2397.21,0.00016849,2]
[350894274,1738179046385,-1112.05,0.00016849,2]
[350894275,1738179046394,-768.35,0.00016849,2]
[350894276,1738179046403,-1933.73,0.00016849,2]
[350894277,1738179046412,-838.62,0.00016849,2]
[350894278,1738179046422,-500.0,0.00016849,2]
[350894279,1738179046431,-500.0,0.00016849,2]
[350894280,1738179046440,-500.0,0.00016849,2]
[350894281,1738179046449,-1848.04,0.00016849,2]
[350894282,1738179046458,-500.0,0.00016849,2]
[350894283,1738179046467,-633.79,0.00016849,2]
[350894284,1738179046476,-512.33747998,0.00016849,2]
[350894285,1738179046489,-219.63252002,0.00016849,2]
[350894286,1738179046498,-500.0,0.00016849,2]
[350894287,1738179046507,-598.23,0.00016849,2]
[350894288,1738179046517,-207.73747998,0.00016849,2]
[350894298,1738179469317,161.025952,0.00013973,2]
[350894299,1738179504687,5254.0,0.00022566,120]
[350894300,1738179535884,13223.21938572,0.00022566,120]
[350894302,1738179709525,423.0,0.00022566,120]
[350894303,1738179743984,471.5,0.00022566,120]
[350894304,1738179746327,4908.13982508,0.000216,120]
[350894374,1738180232463,-500.0,0.00015664,2]
[350894376,1738180232474,-300.0,0.00016436,2]
[350894378,1738180232484,-500.0,0.00016437,2]
[350894380,1738180232495,-500.0,0.00016437,2]
[350894382,1738180232505,-343.03916713,0.00016437,2]
[350894384,1738180232515,-500.0,0.00016437,2]
[350894386,1738180232525,-500.0,0.00016437,2]
[350894388,1738180232536,-500.0,0.00016437,2]
[350894390,1738180232545,-500.0,0.00016437,2]
[350894392,1738180232556,-500.0,0.00016437,2]
[350894394,1738180232566,-500.0,0.00016437,2]
[350894396,1738180232575,-500.0,0.00016437,2]
[350894398,1738180232585,-500.0,0.00016437,2]
[350894400,1738180232596,-500.0,0.00016437,2]
[350894402,1738180232605,-500.0,0.00016437,2]
[350894404,1738180232615,-500.0,0.00016437,2]
[350894406,1738180232625,-500.0,0.00016437,2]
[350894408,1738180232635,-500.0,0.00016437,2]
[350894411,1738180232645,-500.0,0.00016437,2]
[350894414,1738180232654,-500.0,0.00016437,2]
[350894417,1738180232664,-500.0,0.00016437,2]
[350894420,1738180232674,-500.0,0.00016437,2]
[350894423,1738180232686,-500.0,0.00016437,2]
[350894426,1738180232696,-500.0,0.00016437,2]
[350894429,1738180232705,-650.0,0.00016437,2]
[350894432,1738180232714,-500.0,0.00016437,2]
[350894435,1738180232723,-204.31301629,0.00016437,2]
[350894438,1738180232732,-430.53399998,0.00016437,2]
[350894440,1738180232742,-605.14301797,0.00016437,2]
[350894443,1738180232751,-500.0,0.00016437,2]
[350894446,1738180232761,-500.0,0.00016437,2]
[350894449,1738180232770,-500.0,0.00016437,2]
[350894452,1738180232780,-500.0,0.00016437,2]
[350894454,1738180232789,-500.0,0.00016437,2]
[350894457,1738180232799,-500.0,0.00016437,2]
[350894460,1738180232808,-600.0,0.00016437,2]
[350894463,1738180232818,-500.0,0.00016437,2]
[350894466,1738180232827,-500.0,0.00016437,2]
[350894469,1738180232837,-500.0,0.00016437,2]
[350894472,1738180232846,-500.0,0.00016437,2]
[350894475,1738180232856,-500.0,0.00016437,2]
[350894478,1738180232865,-500.0,0.00016437,2]
[350894481,1738180232874,-500.0,0.00016437,2]
[350894484,1738180232884,-500.0,0.00016437,2]
[350894487,1738180232895,-500.0,0.00016437,2]
[350894490,1738180232905,-500.0,0.00016437,2]
[350894493,1738180232914,-500.0,0.00016437,2]
[350894496,1738180232923,-500.0,0.00016437,2]
[350894499,1738180232935,-500.0,0.00016438,2]
[350894502,1738180232945,-521.19884162,0.00016438,2]
[350894505,1738180232955,-500.0,0.00016438,2]
[350894508,1738180232964,-500.0,0.00016438,2]
[350894511,1738180232974,-503.45019622,0.00016438,2]
[350894513,1738180232985,-511.62838714,0.00016438,2]
[350894515,1738180232997,-506.48538674,0.00016438,2]
[350894517,1738180233012,-176.71,0.00016438,2]
[350894519,1738180233022,-500.0,0.00016438,2]
[350894521,1738180233032,-500.0,0.00016438,2]
[350894523,1738180233042,-500.0,0.00016438,2]
[350894525,1738180233051,-500.0,0.00016438,2]
[350894526,1738180233061,-500.0,0.00016438,2]
[350894527,1738180233071,-500.0,0.00016438,2]
[350894528,1738180233082,-429.76227797,0.00016438,2]
[350894529,1738180233091,-500.0,0.00016438,2]
[350894530,1738180233102,-500.0,0.00016438,2]
[350894531,1738180233112,-500.0,0.00016438,2]
[350894532,1738180233123,-500.0,0.00016438,2]
[350894533,1738180233133,-500.0,0.00016438,2]
[350894534,1738180233143,-500.0,0.00016438,2]
[350894535,1738180233154,-500.0,0.00016438,2]
[350894536,1738180233164,-500.0,0.00016438,2]
[350894537,1738180233174,-500.0,0.00016438,2]
[350894538,1738180233186,-500.0,0.00016438,2]
[350894539,1738180233195,-299.06352534,0.00016438,2]
[350894540,1738180233207,-500.0,0.00016438,2]
[350894541,1738180233217,-500.0,0.00016438,2]
[350894542,1738180233227,-500.0,0.00016438,2]
[350894543,1738180233237,-358.01091777,0.00016438,2]
[350894545,1738180233247,-500.0,0.00016438,2]
[350894547,1738180233258,-500.0,0.00016438,2]
[350894549,1738180233268,-500.0,0.00016438,2]
[350894551,1738180233278,-775.26,0.00016438,2]
[350894553,1738180233287,-500.0,0.00016438,2]
[350894555,1738180233297,-500.0,0.00016438,2]
[350894556,1738180233306,-500.0,0.00016438,2]
[350894559,1738180233317,-500.0,0.00016438,2]
[350894561,1738180233327,-500.0,0.00016438,2]
[350894563,1738180233337,-500.0,0.00016438,2]
[350894564,1738180233347,-500.0,0.00016438,2]
[350894566,1738180233357,-500.0,0.00016438,2]
[350894568,1738180233367,-500.0,0.00016438,2]
[350894570,1738180233377,-500.0,0.00016438,2]
[350894572,1738180233387,-500.0,0.00016438,2]
[350894574,1738180233398,-500.0,0.00016438,2]
[350894576,1738180233408,-500.0,0.00016438,2]
[350894578,1738180233417,-500.0,0.00016438,2]
[350894580,1738180233427,-500.0,0.00016438,2]
[350894582,1738180233440,-500.0,0.00016438,2]
[350894584,1738180233450,-500.0,0.00016438,2]
[350894586,1738180233460,-610.44,0.00016438,2]
[350894588,1738180233470,-500.0,0.00016438,2]
[350894590,1738180233480,-500.0,0.00016438,2]
[350894592,1738180233490,-500.0,0.00016438,2]
[350894594,1738180233499,-500.0,0.00016438,2]
[350894596,1738180233509,-1035.14,0.00016438,2]
[350894598,1738180233519,-500.0,0.00016438,2]
[350894600,1738180233529,-500.0,0.00016438,2]
[350894602,1738180233538,-500.0,0.00016438,2]
[350894604,1738180233547,-500.0,0.00016438,2]
[350894606,1738180233557,-500.0,0.00016438,2]
[350894608,1738180233566,-500.0,0.00016438,2]
[350894610,1738180233575,-500.0,0.00016438,2]
[350894612,1738180233584,-500.0,0.00016438,2]
[350894614,1738180233594,-500.0,0.00016438,2]
[350894616,1738180233604,-500.0,0.00016438,2]
[350894618,1738180233614,-500.0,0.00016438,2]
[350894620,1738180233623,-500.0,0.00016438,2]
[350894622,1738180233633,-500.0,0.00016438,2]
[350894624,1738180233642,-500.0,0.00016438,2]
[350894626,1738180233652,-500.0,0.00016438,2]
[350894628,1738180233661,-500.0,0.00016438,2]
[350894630,1738180233670,-500.0,0.00016438,2]
[350894632,1738180233679,-500.0,0.00016438,2]
[350894634,1738180233691,-500.0,0.00016438,2]
[350894636,1738180233701,-500.0,0.00016438,2]
[350894638,1738180233710,-500.0,0.00016438,2]
[350894640,1738180233719,-500.0,0.00016438,2]
[350894642,1738180233728,-549.87,0.00016438,2]
[350894644,1738180233737,-500.0,0.00016438,2]
[350894646,1738180233747,-500.0,0.00016438,2]
[350894648,1738180233756,-500.0,0.00016438,2]
[350894650,1738180233765,-500.0,0.00016438,2]
[350894652,1738180233775,-500.0,0.00016438,2]
[350894654,1738180233784,-500.0,0.00016438,2]
[350894656,1738180233794,-500.0,0.00016438,2]
[350894658,1738180233803,-500.0,0.00016438,2]
[350894660,1738180233813,-500.0,0.00016438,2]
[350894662,1738180233822,-500.0,0.00016438,2]
[350894664,1738180233832,-500.0,0.00016438,2]
[350894666,1738180233841,-500.0,0.00016438,2]
[350894668,1738180233851,-500.0,0.00016438,2]
[350894670,1738180233860,-500.0,0.00016438,2]
[350894672,1738180233870,-500.0,0.00016438,2]
[350894674,1738180233879,-500.0,0.00016438,2]
[350894676,1738180233889,-500.0,0.00016438,2]
[350894678,1738180233899,-500.0,0.00016438,2]
[350894680,1738180233910,-500.0,0.00016438,2]
[350894682,1738180233919,-1499.13,0.00016438,2]
[350894684,1738180233928,-500.0,0.00016438,2]
[350894686,1738180233943,-500.0,0.00016438,2]
[350894688,1738180233952,-500.0,0.00016438,2]
[350894690,1738180233962,-500.0,0.00016438,2]
[350894692,1738180233972,-500.0,0.00016438,2]
[350894694,1738180233981,-500.0,0.00016438,2]
[350894696,1738180233995,-500.0,0.00016438,2]
[350894698,1738180234005,-500.0,0.00016438,2]
[350894700,1738180234015,-500.0,0.00016438,2]
[350894702,1738180234025,-500.0,0.00016438,2]
[350894704,1738180234035,-500.0,0.00016438,2]
[350894706,1738180234045,-500.0,0.00016438,2]
[350894708,1738180234055,-500.0,0.00016438,2]
[350894710,1738180234066,-500.0,0.00016438,2]
[350894712,1738180234076,-500.0,0.00016438,2]
[350894714,1738180234086,-500.0,0.00016438,2]
[350894716,1738180234104,-411.87256272,0.00016438,2]
[350894719,1738180234120,-500.0,0.00016438,2]
[350894721,1738180234130,-500.72159013,0.00016438,2]
[350894723,1738180234140,-500.0,0.00016438,2]
[350894725,1738180234150,-500.0,0.00016438,2]
[350894727,1738180234159,-503.12871286,0.00016438,2]
[350894729,1738180234169,-500.0,0.00016438,2]
[350894731,1738180234179,-500.0,0.00016438,2]
[350894733,1738180234193,-535.87397067,0.00016438,2]
[350894735,1738180234203,-500.0,0.00016438,2]
[350894737,1738180234213,-500.0,0.00016438,2]
[350894739,1738180234223,-501.91014212,0.00016438,2]
[350894741,1738180234233,-500.0,0.00016438,2]
[350894743,1738180234243,-500.0,0.00016438,2]
[350894745,1738180234252,-501.04600418,0.00016438,2]
[350894747,1738180234262,-500.0,0.00016438,2]
[350894749,1738180234272,-500.0,0.00016438,2]
[350894751,1738180234281,-500.0,0.00016438,2]
[350894753,1738180234291,-500.0,0.00016438,2]
[350894755,1738180234300,-500.0,0.00016438,2]
[350894757,1738180234313,-8409.78,0.00016438,2]
[350894759,1738180234323,-500.0,0.00016438,2]
[350894761,1738180234333,-500.0,0.00016438,2]
[350894763,1738180234343,-500.0,0.00016438,2]
[350894765,1738180234352,-3796.31,0.00016438,2]
[350894768,1738180234362,-4934.11,0.00016438,2]
[350894770,1738180234372,-519.34556747,0.00016438,2]
[350894772,1738180234382,-2018.51,0.00016438,2]
[350894774,1738180234392,-500.0,0.00016438,2]
[350894776,1738180234403,-500.0,0.00016438,2]
[350894778,1738180234413,-500.0,0.00016438,2]
[350894780,1738180234425,-500.0,0.00016438,2]
[350894782,1738180234439,-500.0,0.00016438,2]
[350894783,1738180234449,-500.0,0.00016438,2]
[350894785,1738180234459,-947.54,0.00016438,2]
[350894787,1738180234469,-500.0,0.00016438,2]
[350894789,1738180234480,-1632.27,0.00016438,2]
[350894791,1738180234489,-500.0,0.00016438,2]
[350894793,1738180234499,-719.69,0.00016438,2]
[350894795,1738180234510,-500.0,0.00016438,2]
[350894796,1738180234521,-500.0,0.00016438,2]
[350894798,1738180234532,-505.78145775,0.00016438,2]
[350894800,1738180234542,-500.0,0.00016438,2]
[350894802,1738180234552,-500.0,0.00016438,2]
[350894804,1738180234563,-500.0,0.00016438,2]
[350894805,1738180234574,-2038.21,0.00016438,2]
[350894807,1738180234584,-630.93880359,0.00016438,2]
[350894809,1738180234596,-1560.86,0.00016438,2]
[350894810,1738180234607,-500.0,0.00016438,2]
[350894811,1738180234618,-630.81,0.00016438,2]
[350894812,1738180234631,-661.13,0.00016438,2]
[350894813,1738180234646,-500.0,0.00016438,2]
[350894814,1738180234657,-540.19,0.00016438,2]
[350894815,1738180234667,-500.0,0.00016438,2]
[350894816,1738180234678,-1738.2,0.00016438,2]
[350894817,1738180234701,-7376.56,0.00016438,2]
[350894818,1738180234713,-2696.12,0.00016438,2]
[350894819,1738180234726,-25033.99,0.00016438,2]
[350894820,1738180234737,-500.0,0.00016438,2]
[350894821,1738180234748,-500.0,0.00016438,2]
[350894822,1738180234758,-500.0,0.00016438,2]
[350894823,1738180234935,-500.0,0.00016438,2]
[350894824,1738180234951,-524.47,0.00016438,2]
[350894825,1738180234962,-500.0,0.00016438,2]
[350894826,1738180234972,-549.0,0.00016438,2]
[350894827,1738180234981,-1352.05,0.00016438,2]
[350894828,1738180234992,-500.0,0.00016438,2]
[350894829,1738180235004,-500.0,0.00016438,2]
[350894830,1738180235013,-500.0,0.00016438,2]
[350894831,1738180235023,-533.26,0.00016438,2]
[350894832,1738180235033,-500.0,0.00016438,2]
[350894833,1738180235044,-849.48,0.00016438,2]
[350894834,1738180235054,-500.0,0.00016438,2]
[350894835,1738180235064,-682.92,0.00016438,2]
[350894836,1738180235074,-500.0,0.00016438,2]
[350894837,1738180235086,-2048.22,0.00016438,2]
[350894838,1738180235096,-550.38,0.00016438,2]
[350894839,1738180235106,-550.38,0.00016438,2]
[350894840,1738180235116,-500.0,0.00016438,2]
[350894841,1738180235125,-550.38,0.00016438,2]
[350894842,1738180235136,-550.38,0.00016438,2]
[350894843,1738180235145,-550.38,0.00016438,2]
[350894844,1738180235155,-550.38,0.00016438,2]
[350894845,1738180235164,-550.38,0.00016438,2]
[350894846,1738180235173,-550.38,0.00016438,2]
[350894847,1738180235186,-550.38,0.00016438,2]
[350894848,1738180235195,-241.87418326,0.00016438,2]
[350894849,1738180235401,-308.50581674,0.00016438,2]
[350894850,1738180235411,-500.0,0.00016438,2]
[350894851,1738180235420,-500.0,0.00016438,2]
[350894852,1738180235429,-500.0,0.00016438,2]
[350894853,1738180235443,-500.0,0.00016438,2]
[350894854,1738180235452,-1113.49,0.00016438,2]
[350894855,1738180235461,-500.0,0.00016438,2]
[350894856,1738180235470,-2020.3,0.00016438,2]
[350894857,1738180235479,-945.45,0.00016438,2]
[350894858,1738180235489,-500.0,0.00016438,2]
[350894859,1738180235499,-1021.7,0.00016438,2]
[350894860,1738180235508,-500.0,0.00016438,2]
[350894861,1738180235518,-825.66,0.00016438,2]
[350894862,1738180235528,-500.0,0.00016438,2]
[350894863,1738180235537,-580.29,0.00016438,2]
[350894864,1738180235547,-572.43,0.00016438,2]
[350894865,1738180235559,-504.89855023,0.00016438,2]
[350894866,1738180235569,-500.0,0.00016438,2]
[350894867,1738180235578,-370.27759327,0.00016438,2]
[350894868,1738180235587,-500.0,0.00016438,2]
[350894869,1738180235597,-1129.3,0.00016438,2]
[350894870,1738180235606,-1058.33,0.00016438,2]
[350894871,1738180235615,-500.0,0.00016438,2]
[350894872,1738180235625,-500.0,0.00016438,2]
[350894873,1738180235634,-500.0,0.00016438,2]
[350894874,1738180235643,-500.0,0.00016438,2]
[350894875,1738180235654,-10932.17,0.00016438,2]
[350894876,1738180235663,-500.0,0.00016438,2]
[350894877,1738180235673,-500.0,0.00016438,2]
[350894878,1738180235685,-2708.91,0.00016438,2]
[350894879,1738180235694,-554.71977024,0.00016438,2]
[350894880,1738180235703,-500.0,0.00016438,2]
[350894881,1738180235712,-500.0,0.00016438,2]
[350894882,1738180235721,-500.0,0.00016438,2]
[350894883,1738180235730,-500.0,0.00016438,2]
[350894884,1738180235739,-500.0,0.00016438,2]
[350894885,1738180235750,-500.0,0.00016438,2]
[350894886,1738180235759,-500.0,0.00016438,2]
[350894887,1738180235768,-500.0,0.00016438,2]